bitfinex/quotes_SOLUSD_20250821
["timestamp","ask_amount","ask_price","bid_price","bid_amount"]
[1755765904035,41.56,186.47,186.43,26.03]
[1755765904238,45.34846891,186.47,186.43,26.74]
[1755765904439,45.34846891,186.47,186.44,0.71]
[1755765908289,3.78846891,186.49,186.45,0.71]
[1755765908571,41.54,186.48,186.46,0.71]
[1755765908776,0.06,186.52,186.47,3.78846891]
[1755765908952,41.54,186.51,186.47,29.78846891]
[1755765909147,3.84846891,186.52,186.48,0.71]
[1755765909358,41.54,186.51,186.48,0.71]
[1755765910141,46.04846891,186.51,186.47,26.0]
[1755765910469,46.04846891,186.51,186.47,26.71]
[1755765910648,4.50846891,186.5,186.44,84.58279205]
[1755765910851,3.78846891,186.5,186.45,4.49846891]
[1755765911060,3.78846891,186.5,186.46,0.71]
[1755765911649,3.78846891,186.5,186.45,3.78846891]
[1755765911848,3.78846891,186.48,186.44,109.58846891]
[1755765912158,4.50846891,186.49,186.45,0.71]
[1755765912739,4.50846891,186.48,186.44,29.78846891]
[1755765913007,4.50846891,186.48,186.44,30.49846891]
[1755765913146,4.50846891,186.48,186.44,26.71]
[1755765913666,3.78846891,186.49,186.45,0.71]
[1755765914258,4.50846891,186.49,186.45,0.71]
[1755765914462,45.32846891,186.49,186.46,0.71]
[1755765915154,41.54,186.49,186.47,0.71]
[1755765915579,46.04846891,186.49,186.44,30.49846891]
[1755765915772,45.32846891,186.49,186.44,30.49846891]
[1755765916094,46.04846891,186.49,186.44,30.49846891]
[1755765916273,46.04846891,186.49,186.45,0.71]
[1755765917760,45.32846891,186.49,186.45,0.71]
[1755765918591,46.04846891,186.49,186.45,0.71]
[1755765919585,41.54,186.49,186.45,0.71]
[1755765919787,45.32846891,186.49,186.45,0.71]
[1755765919987,0.06,186.52,186.47,3.78846891]
[1755765920287,0.06,186.52,186.48,4.49846891]
[1755765920288,41.54,186.51,186.48,4.49846891]
[1755765920586,41.54,186.51,186.49,0.71]
[1755765922785,3.84846891,186.52,186.49,0.71]
[1755765922994,0.06,186.52,186.49,3.78846891]
[1755765923293,0.06,186.52,186.51,3.78846891]
[1755765923669,0.06,186.52,186.51,4.44846891]
[1755765924405,0.06,186.52,186.49,0.28432314]
[1755765924584,4.56846891,186.52,186.47,26.66]
[1755765924771,4.56846891,186.52,186.47,30.44846891]
[1755765924976,3.84846891,186.52,186.48,0.66]
[1755765925695,4.56846891,186.52,186.47,3.78846891]
[1755765925878,0.72,186.51,186.47,3.78846891]
[1755765926077,0.72,186.51,186.47,4.44846891]
[1755765926581,3.84846891,186.52,186.47,4.44846891]
[1755765926783,4.56846891,186.52,186.47,4.44846891]
[1755765927192,4.56846891,186.52,186.47,3.78846891]
[1755765927409,4.56846891,186.52,186.48,0.66]
[1755765928387,3.84846891,186.52,186.49,0.66]
[1755765928580,0.06,186.52,186.49,0.66]
[1755765928780,0.06,186.52,186.5,0.66]
[1755765929207,0.06,186.52,186.49,0.66]
[1755765929718,4.56846891,186.52,186.47,4.44846891]
[1755765930811,4.56846891,186.52,186.47,3.78846891]
[1755765931016,4.56846891,186.52,186.48,0.66]
[1755765931606,3.84846891,186.52,186.48,0.66]
[1755765932802,0.06,186.52,186.48,4.44846891]
[1755765932998,0.06,186.52,186.48,3.78846891]
[1755765933202,0.06,186.52,186.49,4.44846891]
[1755765933713,0.06,186.52,186.5,0.66]
[1755765934104,0.06,186.52,186.51,0.66]
[1755765934904,0.06,186.52,186.49,0.66]
[1755765935604,0.06,186.52,186.5,0.66]
[1755765935799,0.06,186.52,186.47,0.66]
[1755765936012,0.78,186.52,186.5,26.0]
[1755765936322,0.06,186.52,186.5,26.0]
[1755765936623,0.06,186.52,186.48,4.44846891]
[1755765936826,0.06,186.52,186.49,0.66]
[1755765937410,0.06,186.52,186.5,0.66]
[1755765937800,0.06,186.52,186.47,79.8]
[1755765938009,0.06,186.52,186.49,0.66]
[1755765938620,0.06,186.52,186.46,26.0]
[1755765938621,3.78846891,186.5,186.46,26.0]
[1755765938830,3.78846891,186.5,186.46,26.66]
[1755765938831,4.50846891,186.5,186.46,26.66]
[1755765939132,4.50846891,186.49,186.46,0.03]
[1755765939421,3.78846891,186.49,186.46,0.03]
[1755765939625,0.06,186.52,186.48,0.03]
[1755765939833,4.50846891,186.49,186.48,0.03]
[1755765940634,46.02846891,186.49,186.48,0.03]
[1755765942520,49.81693782,186.49,186.48,0.03]
[1755765943227,63.41253183,186.49,186.48,0.03]
[1755765944729,55.83559401,186.49,186.48,0.03]
[1755765944917,63.41253183,186.49,186.48,0.03]
[1755765946928,3.78846891,186.49,186.48,0.03]
[1755765947127,45.30846891,186.49,186.48,0.03]
[1755765949007,46.02846891,186.49,186.48,0.03]
[1755765949629,49.81693782,186.49,186.48,0.03]
[1755765950430,45.30846891,186.49,186.48,0.03]
[1755765950606,46.02846891,186.49,186.48,0.03]
[1755765951117,63.41253183,186.49,186.48,0.03]
[1755765951908,17.38406292,186.49,186.48,0.03]
[1755765952114,59.64406292,186.49,186.48,0.03]
[1755765952313,63.43253183,186.49,186.48,0.03]
[1755765953515,59.64406292,186.49,186.48,0.03]
[1755765953830,21.89253183,186.49,186.48,0.03]
[1755765954026,63.43253183,186.49,186.48,0.03]
[1755765956935,21.89253183,186.49,186.48,0.03]
[1755765957134,63.43253183,186.49,186.48,0.03]
[1755765957914,63.43253183,186.49,186.46,0.03]
[1755765957915,26.0,186.47,186.46,0.03]
[1755765958113,84.92406292,186.47,186.46,0.03]
[1755765958446,85.60406292,186.47,186.46,0.03]
[1755765958607,85.88838606,186.47,186.44,0.03]
[1755765958811,17.38406292,186.45,186.44,0.03]
[1755765959133,58.92406292,186.45,186.44,0.03]
[1755765959440,59.60406292,186.45,186.44,0.03]
[1755765960143,59.60406292,186.45,186.43,0.03]
[1755765960320,4.46846891,186.44,186.43,0.03]
[1755765960636,3.78846891,186.44,186.43,0.03]
[1755765960817,71.32846891,186.44,186.43,0.03]
[1755765961020,72.00846891,186.44,186.43,0.03]
[1755765961448,71.32846891,186.44,186.43,0.03]
[1755765962153,72.00846891,186.44,186.43,0.03]
[1755765962316,71.32846891,186.44,186.43,0.03]
[1755765963239,71.32846891,186.44,186.43,0.69]
[1755765963418,71.32846891,186.44,186.43,0.03]
[1755765964045,71.32846891,186.44,186.43,0.69]
[1755765964735,29.78846891,186.44,186.43,0.69]
[1755765965040,3.78846891,186.47,186.43,0.69]
[1755765965235,45.32846891,186.46,186.43,0.69]
[1755765965459,45.32846891,186.45,186.43,0.69]
[1755765965755,132.5,186.5,186.43,4.47846891]
[1755765966058,45.32846891,186.49,186.44,4.44846891]
[1755765966254,45.32846891,186.48,186.45,0.66]
[1755765967038,41.54,186.48,186.45,0.66]
[1755765967240,45.32846891,186.48,186.45,0.66]
[1755765967761,3.78846891,186.51,186.46,3.78846891]
[1755765968050,0.06,186.52,186.48,3.78846891]
[1755765968226,41.54,186.51,186.48,3.78846891]
[1755765968426,41.54,186.51,186.49,0.66]
[1755765970042,0.06,186.52,186.5,3.78846891]
[1755765970370,0.06,186.52,186.51,4.44846891]
[1755765970541,0.06,186.52,186.51,4.59063048]
[1755765970748,0.06,186.54,186.51,44.32838606]
[1755765970950,0.06,186.56,186.54,26.0]
[1755765971149,0.06,186.56,186.55,29.78846891]
[1755765971349,0.06,186.56,186.55,30.44846891]
[1755765972369,0.06,186.56,186.55,26.66]
[1755765972558,0.06,186.56,186.55,30.44846891]
[1755765973258,0.06,186.56,186.55,0.66]
[1755765973458,0.06,186.56,186.55,4.44846891]
[1755765974472,0.06,186.56,186.55,0.66]
[1755765976953,0.06,186.56,186.53,0.66]
[1755765977157,0.06,186.56,186.54,0.66]
[1755765978555,3.84846891,186.56,186.52,26.66]
[1755765978875,3.84846891,186.56,186.53,0.66]
[1755765979076,0.06,186.56,186.54,0.66]
[1755765979255,0.06,186.56,186.55,0.66]
[1755765979456,0.06,186.56,186.53,0.66]
[1755765979656,0.06,186.56,186.54,0.66]
[1755765980591,3.84846891,186.56,186.54,0.66]
[1755765981477,3.84846891,186.56,186.52,26.66]
[1755765981781,3.84846891,186.56,186.53,0.66]
[1755765982350,3.84846891,186.56,186.51,3.78846891]
[1755765982581,3.84846891,186.56,186.54,0.66]
[1755765982879,3.84846891,186.56,186.52,0.66]
[1755765983064,3.84846891,186.56,186.53,0.67]
[1755765983664,3.84846891,186.56,186.54,0.67]
[1755765983864,3.84846891,186.56,186.52,0.67]
[1755765984061,3.84846891,186.56,186.53,0.67]
[1755765984991,3.78846891,186.55,186.54,0.67]
[1755765985567,3.78846891,186.55,186.52,26.0]
[1755765985894,3.78846891,186.55,186.53,0.67]
[1755765986190,3.84846891,186.56,186.52,26.0]
[1755765986391,3.84846891,186.56,186.55,3.78846891]
[1755765986392,0.06,186.56,186.55,3.78846891]
[1755765986569,0.06,186.56,186.55,30.45846891]
[1755765986766,0.06,186.56,186.55,30.74279205]
[1755765988179,0.06,186.56,186.55,44.33838606]
[1755765990270,0.06,186.56,186.55,49.69887922]
[1755765990670,0.06,186.56,186.55,91.19887922]
[1755765991570,0.06,186.56,186.55,174.78734813]
[1755765992298,0.06,186.56,186.55,170.99887922]
[1755765993271,0.06,186.56,186.55,165.63838606]
[1755765993779,0.06,186.56,186.55,124.13838606]
[1755765993986,0.06,186.56,186.55,165.63838606]
[1755765994396,0.06,186.56,186.55,170.99887922]
[1755765994696,0.06,186.56,186.55,165.63838606]
[1755765996297,0.06,186.56,186.55,170.99887922]
[1755765996504,0.06,186.56,186.55,174.78734813]
[1755765996796,0.06,186.56,186.55,176.93540213]
[1755765997298,0.06,186.58,186.56,0.28432314]
[1755765997473,0.06,186.58,186.57,48.12685497]
[1755765998088,0.06,186.58,186.57,53.48677349]
[1755765998291,0.06,186.58,186.57,133.28677349]
[1755765998505,0.06,186.6,186.59,17.66838606]
[1755765998705,0.06,186.6,186.59,138.96838606]
[1755765998899,0.06,186.6,186.59,139.63838606]
[1755765999279,0.06,186.6,186.59,141.78598006]
[1755766000307,0.06,186.6,186.59,147.14532407]
[1755766001304,0.06,186.6,186.59,61.82381849]
[1755766001712,0.06,186.6,186.59,61.96598006]
[1755766006005,0.06,186.6,186.59,141.76598006]
[1755766006686,0.06,186.6,186.59,147.12532407]
[1755766009099,0.06,186.6,186.59,141.76598006]
[1755766009404,0.06,186.6,186.59,141.09598006]
[1755766010700,0.06,186.6,186.59,137.30751115]
[1755766010896,0.06,186.6,186.59,141.09598006]
[1755766014017,0.06,186.6,186.59,141.09598006]
[1755766014191,0.06,186.6,186.59,138.94838606]
[1755766014590,0.06,186.6,186.59,139.59838606]
[1755766015504,0.06,186.6,186.59,144.95773007]
[1755766015693,0.06,186.6,186.59,139.59838606]
[1755766016926,0.06,186.6,186.59,144.95773007]
[1755766017487,0.06,186.62,186.59,144.95773007]
[1755766017488,0.06,186.62,186.61,93.39559401]
[1755766017704,0.06,186.62,186.61,138.94838606]
[1755766018208,0.06,186.62,186.61,143.58685506]
[1755766018521,0.06,186.62,186.61,142.93685506]
[1755766019725,0.06,186.62,186.61,101.45685506]
[1755766020007,0.75,186.62,186.6,3.78846891]
[1755766020187,0.75,186.62,186.57,2.147939]
[1755766020188,0.69,186.61,186.57,2.147939]
[1755766020605,0.69,186.61,186.58,3.78846891]
[1755766020889,0.69,186.61,186.54,0.03]
[1755766020890,0.06,186.62,186.6,29.78846891]
[1755766021206,0.69,186.61,186.6,26.0]
[1755766021402,0.75,186.62,186.6,29.78846891]
[1755766021601,0.69,186.61,186.6,29.78846891]
[1755766022305,0.06,186.62,186.61,0.28432314]
[1755766022697,0.75,186.62,186.61,4.07279205]
[1755766022903,0.06,186.62,186.61,4.72279205]
[1755766023211,0.06,186.62,186.61,4.07279205]
[1755766023596,0.06,186.62,186.61,0.28432314]
[1755766023797,0.06,186.62,186.61,4.07279205]
[1755766024924,0.06,186.62,186.61,4.72279205]
[1755766025091,0.06,186.62,186.61,23.67715568]
[1755766026993,0.06,186.62,186.61,18.31838606]
[1755766027396,0.06,186.62,186.61,4.07279205]
[1755766027810,0.06,186.62,186.61,85.12838606]
[1755766028013,0.06,186.62,186.61,87.27586406]
[1755766028300,0.06,186.62,186.61,85.12838606]
[1755766028496,0.06,186.62,186.61,87.27597906]
[1755766028710,0.06,186.62,186.61,87.92597906]
[1755766028924,0.06,186.62,186.61,93.28474868]
[1755766029628,0.06,186.62,186.61,173.08474868]
[1755766032634,0.06,186.64,186.61,173.08474868]
[1755766032635,0.06,186.64,186.63,0.28432314]
[1755766032841,0.06,186.64,186.63,125.27279205]
[1755766033153,0.06,186.64,186.63,148.66505032]
[1755766033305,0.06,186.64,186.63,144.87658141]
[1755766035940,0.06,186.64,186.63,147.02359841]
[1755766038440,0.06,186.64,186.63,99.27107992]
[1755766038655,0.75,186.64,186.63,140.73107992]
[1755766038850,0.75,186.64,186.63,141.01540306]
[1755766039520,0.75,186.64,186.63,85.67548591]
[1755766039721,0.75,186.64,186.63,127.13548591]
[1755766039940,0.75,186.64,186.63,127.41980905]
[1755766041535,0.75,186.64,186.63,123.63134014]
[1755766041736,0.75,186.64,186.63,127.41980905]
[1755766041935,0.06,186.64,186.63,127.41980905]
[1755766042123,0.43,186.68,186.66,26.0]
[1755766042458,0.43,186.68,186.67,3.78846891]
[1755766042667,0.2,186.71,186.67,3.78846891]
[1755766042960,0.2,186.71,186.67,7.57693791]
[1755766043848,0.2,186.71,186.67,3.788469]
[1755766044051,0.2,186.71,186.67,7.57693791]
[1755766044216,0.48,186.7,186.67,7.57693791]
[1755766044424,0.48,186.69,186.67,7.57693791]
[1755766044627,0.48,186.68,186.67,7.57693791]
[1755766044837,0.48,186.68,186.67,3.78846891]
[1755766045036,0.48,186.7,186.67,7.57693791]
[1755766045335,0.48,186.69,186.67,3.78846891]
[1755766045538,0.48,186.68,186.66,41.46]
[1755766045855,0.48,186.67,186.66,3.788469]
[1755766046029,0.48,186.67,186.65,83.52846891]
[1755766046230,0.48,186.67,186.65,128.75693791]
[1755766047957,0.48,186.67,186.66,3.78846891]
[1755766049137,0.48,186.69,186.66,3.78846891]
[1755766049352,0.48,186.68,186.66,3.78846891]
[1755766049552,0.48,186.7,186.67,3.78846891]
[1755766049860,0.2,186.71,186.68,3.78846891]
[1755766050245,0.68,186.71,186.68,3.78846891]
[1755766050550,0.48,186.7,186.67,3.78846891]
[1755766051131,0.2,186.71,186.68,3.78846891]
[1755766051532,0.68,186.71,186.68,3.78846891]
[1755766051940,0.2,186.71,186.7,3.78846891]
[1755766052359,0.2,186.71,186.7,4.44846891]
[1755766052868,0.2,186.71,186.7,8.23693691]
[1755766053935,0.2,186.71,186.7,8.52126005]
[1755766054948,0.2,186.71,186.7,4.07279114]
[1755766055162,0.2,186.71,186.7,7.86126005]
[1755766055360,0.2,186.71,186.7,3.788468]
[1755766055567,0.68,186.71,186.68,41.47]
[1755766055872,0.48,186.7,186.68,41.47]
[1755766056059,0.48,186.7,186.68,0.03]
[1755766056382,3.98846891,186.71,186.68,0.03]
[1755766056560,4.26846891,186.69,186.68,0.03]
[1755766058951,0.2,186.71,186.68,0.03]
[1755766059160,0.2,186.71,186.68,4.47846891]
[1755766059489,0.2,186.71,186.68,0.03]
[1755766059797,0.68,186.71,186.68,0.03]
[1755766060104,4.26846891,186.7,186.68,0.03]
[1755766060787,0.48,186.7,186.68,0.03]
[1755766061680,3.98846891,186.71,186.68,0.03]
[1755766062195,0.2,186.71,186.68,0.03]
[1755766063190,3.98846891,186.71,186.68,0.03]
[1755766063599,0.2,186.71,186.68,0.03]
[1755766063999,0.2,186.71,186.68,0.69]
[1755766064296,0.2,186.71,186.69,4.44846891]
[1755766064609,0.2,186.71,186.7,4.44846891]
[1755766066209,0.2,186.71,186.69,3.78846891]
[1755766068202,0.2,186.71,186.69,4.44846891]
[1755766068798,0.2,186.71,186.7,4.44846891]
[1755766069209,0.2,186.71,186.7,8.23693691]
[1755766069439,0.2,186.71,186.7,8.52126005]
[1755766070422,0.2,186.71,186.7,101.85685406]
[1755766073327,0.2,186.71,186.7,107.33423857]
[1755766079110,0.2,186.71,186.7,89.29017565]
[1755766079333,0.2,186.71,186.7,93.07864456]
[1755766080042,0.2,186.71,186.7,13.33864456]
[1755766080421,4.63846891,186.71,186.68,0.03]
[1755766080731,4.43846891,186.7,186.68,0.03]
[1755766081143,0.65,186.7,186.68,0.03]
[1755766081325,3.98846891,186.71,186.68,0.03]
[1755766081638,4.63846891,186.71,186.68,0.03]
[1755766081948,0.2,186.71,186.68,0.03]
[1755766083219,0.2,186.71,186.69,26.0]
[1755766083629,0.2,186.71,186.69,29.78846891]
[1755766084048,0.2,186.71,186.7,26.0]
[1755766085335,0.85,186.71,186.7,26.0]
[1755766085538,0.2,186.71,186.7,26.0]
[1755766086725,4.63846891,186.71,186.69,26.0]
[1755766086918,3.78846891,186.7,186.68,0.03]
[1755766087115,3.78846891,186.69,186.68,26.03]
[1755766087321,4.43846891,186.69,186.68,0.03]
[1755766088435,0.2,186.71,186.68,0.03]
[1755766088623,0.2,186.71,186.68,4.51846891]
[1755766088820,0.2,186.71,186.69,4.48846891]
[1755766089017,0.2,186.71,186.7,3.78846891]
[1755766089723,0.2,186.71,186.69,3.78846891]
[1755766089925,0.2,186.71,186.68,0.03]
[1755766090340,0.2,186.71,186.68,3.81846891]
[1755766090726,0.2,186.71,186.68,0.03]
[1755766091130,3.98846891,186.71,186.68,0.03]
[1755766091320,0.65,186.7,186.68,0.03]
[1755766091845,4.43846891,186.69,186.68,26.03]
[1755766092046,4.43846891,186.69,186.68,0.03]
[1755766092960,0.65,186.69,186.68,0.03]
[1755766093251,4.43846891,186.69,186.68,0.03]
[1755766093445,0.65,186.69,186.68,0.03]
[1755766093642,4.43846891,186.69,186.68,0.03]
[1755766100795,3.98846891,186.71,186.68,0.73]
[1755766101071,3.98846891,186.71,186.68,0.03]
[1755766101580,0.2,186.71,186.69,4.48846891]
[1755766101855,0.2,186.71,186.68,0.03]
[1755766102063,0.2,186.71,186.68,0.73]
[1755766102260,0.2,186.71,186.69,0.7]
[1755766102763,0.2,186.71,186.68,0.03]
[1755766103143,0.2,186.71,186.69,0.68]
[1755766104561,0.2,186.71,186.68,0.03]
[1755766105269,0.2,186.71,186.68,0.71]
[1755766105767,3.78846891,186.69,186.68,0.03]
[1755766106074,4.43846891,186.69,186.68,0.03]
[1755766106236,3.78846891,186.69,186.68,0.03]
[1755766106441,3.78846891,186.7,186.68,0.71]
[1755766106637,3.78846891,186.69,186.68,0.03]
[1755766108567,4.43846891,186.69,186.68,0.03]
[1755766110186,3.78846891,186.69,186.68,0.03]
[1755766111276,0.2,186.71,186.68,0.03]
[1755766111484,3.78846891,186.69,186.68,0.03]
[1755766112875,41.42,186.7,186.68,0.03]
[1755766113185,3.78846891,186.69,186.68,0.03]
[1755766115483,42.07,186.7,186.68,0.03]
[1755766115686,3.78846891,186.69,186.68,0.03]
[1755766116682,4.43846891,186.69,186.68,0.03]
[1755766119880,3.78846891,186.69,186.68,0.03]
[1755766120793,41.42,186.7,186.68,0.71]
[1755766120992,3.78846891,186.69,186.68,0.71]
[1755766121876,0.2,186.71,186.68,4.49846891]
[1755766122194,0.2,186.71,186.69,4.46846891]
[1755766122693,0.2,186.71,186.7,0.68]
[1755766122863,0.2,186.71,186.7,4.46846891]
[1755766126280,0.2,186.71,186.68,0.31432314]
[1755766126281,0.2,186.71,186.68,26.71]
[1755766126591,0.2,186.71,186.68,0.71]
[1755766126592,3.78846891,186.7,186.68,0.71]
[1755766126782,3.98846891,186.71,186.69,0.68]
[1755766127878,0.2,186.71,186.69,0.68]
[1755766128200,0.2,186.71,186.7,0.68]
[1755766128597,0.2,186.71,186.68,0.03]
[1755766128895,42.07,186.7,186.68,0.03]
[1755766129078,3.78846891,186.69,186.68,0.03]
[1755766130194,41.42,186.69,186.68,0.71]
[1755766130377,45.20846891,186.69,186.68,0.03]
[1755766131174,41.42,186.69,186.68,0.71]
[1755766132567,41.42,186.69,186.68,0.03]
[1755766132766,45.20846891,186.69,186.68,0.03]
[1755766134275,45.85846891,186.69,186.68,0.03]
[1755766135287,42.07,186.69,186.68,0.03]
[1755766135597,45.85846891,186.69,186.68,0.03]
[1755766136678,45.20846891,186.69,186.68,0.03]
[1755766137793,41.42,186.69,186.68,0.03]
[1755766138891,45.20846891,186.69,186.68,0.03]
[1755766139976,41.42,186.69,186.68,0.74]
[1755766140378,41.42,186.69,186.68,0.03]
[1755766140593,45.20846891,186.69,186.68,0.03]
[1755766141510,45.20846891,186.69,186.68,0.74]
[1755766142019,41.42,186.69,186.68,0.03]
[1755766142304,45.20846891,186.69,186.68,0.03]
[1755766143206,3.78846891,186.69,186.68,0.03]
[1755766143380,0.2,186.71,186.68,4.52846891]
[1755766143582,0.2,186.71,186.7,3.78846891]
[1755766143992,0.2,186.71,186.7,4.49846891]
[1755766145908,0.2,186.71,186.7,4.78279205]
[1755766146112,0.2,186.71,186.7,18.37838606]
[1755766147089,0.2,186.71,186.7,4.78279205]
[1755766148791,0.2,186.71,186.7,6.92957905]
[1755766150825,0.2,186.71,186.7,2.856787]
[1755766151129,0.2,186.71,186.7,4.49846891]
[1755766151325,0.2,186.71,186.7,30.49846891]
[1755766152416,0.2,186.71,186.69,4.49846891]
[1755766152719,0.2,186.71,186.68,2.177133]
[1755766153020,0.2,186.71,186.68,0.03]
[1755766153316,3.98846891,186.71,186.68,0.03]
[1755766154119,4.63846891,186.71,186.68,0.03]
[1755766154494,3.78846891,186.69,186.68,0.03]
[1755766154717,13.59559401,186.68,186.66,0.03]
[1755766154990,62.57253183,186.67,186.66,0.03]
[1755766155190,13.59559401,186.66,186.64,0.03]
[1755766155390,3.78846891,186.65,186.64,0.03]
[1755766155594,13.59559401,186.64,186.54,0.74]
[1755766155813,3.78846891,186.59,186.54,0.74]
[1755766155991,45.20846891,186.59,186.54,0.03]
[1755766156198,59.45406292,186.59,186.54,0.03]
[1755766156401,61.82418168,186.59,186.54,0.03]
[1755766160599,13.59559401,186.58,186.54,0.03]
[1755766160802,6.15858767,186.55,186.54,0.03]
[1755766161150,47.63858767,186.55,186.54,0.03]
[1755766161299,6.15858767,186.55,186.54,0.03]
[1755766161642,41.48,186.55,186.54,0.74]
[1755766161998,0.65,186.64,186.54,6.89858767]
[1755766162198,47.63858767,186.63,186.55,0.71]
[1755766162532,6.15858767,186.61,186.56,6.15858767]
[1755766162730,6.15858767,186.61,186.57,0.71]
[1755766162902,41.5,186.6,186.56,6.15858767]
[1755766163101,41.5,186.6,186.58,0.71]
[1755766163301,41.5,186.6,186.56,6.15858767]
[1755766163506,41.5,186.6,186.58,0.66]
[1755766164604,41.5,186.6,186.59,0.66]
[1755766165214,47.65858767,186.6,186.56,0.66]
[1755766165418,6.15858767,186.58,186.54,0.69]
[1755766165624,6.15858767,186.58,186.54,0.03]
[1755766165930,41.62,186.57,186.55,0.66]
[1755766166103,41.62,186.57,186.54,0.03]
[1755766166306,47.77858767,186.57,186.54,0.03]
[1755766166506,47.77858767,186.57,186.55,0.66]
[1755766167413,41.62,186.57,186.55,0.66]
[1755766167627,41.62,186.57,186.56,0.66]
[1755766169609,6.15858767,186.61,186.56,6.81858767]
[1755766169806,41.62,186.6,186.57,6.81858767]
[1755766170050,41.62,186.6,186.58,0.66]
[1755766172141,41.62,186.6,186.56,6.15858767]
[1755766172444,41.62,186.6,186.56,0.66]
[1755766172838,41.62,186.6,186.57,0.66]
[1755766173147,6.15858767,186.59,186.54,0.69]
[1755766173309,6.15858767,186.59,186.55,0.66]
[1755766173843,42.27,186.6,186.54,6.18858767]
[1755766173844,47.77858767,186.6,186.54,6.18858767]
[1755766174134,6.80858767,186.59,186.54,6.18858767]
[1755766174334,6.15858767,186.59,186.54,6.18858767]
[1755766174535,6.15858767,186.59,186.55,0.66]
[1755766174849,6.15858767,186.59,186.56,0.03]
[1755766175035,41.62,186.6,186.56,0.69]
[1755766175036,47.77858767,186.6,186.56,0.69]
[1755766175232,41.62,186.6,186.57,0.66]
[1755766175440,41.62,186.6,186.58,0.66]
[1755766175943,41.62,186.6,186.56,6.18858767]
[1755766176141,41.62,186.6,186.57,0.66]
[1755766177422,6.15858767,186.61,186.57,0.66]
[1755766177647,41.58,186.6,186.57,0.66]
[1755766177942,41.58,186.6,186.56,0.03]
[1755766178142,41.58,186.6,186.56,0.69]
[1755766178912,41.58,186.6,186.57,0.66]
[1755766179113,0.06,186.64,186.58,26.0]
[1755766179328,41.56,186.63,186.59,6.81858767]
[1755766179624,42.21,186.63,186.58,6.81858767]
[1755766180034,42.21,186.63,186.61,26.0]
[1755766180240,48.36858767,186.63,186.61,26.0]
[1755766180442,45.33587815,186.63,186.61,26.0]
[1755766181429,45.33587815,186.63,186.58,30.43587815]
[1755766181653,45.33587815,186.63,186.61,26.0]
[1755766181821,45.98587815,186.63,186.58,26.0]
[1755766182150,3.77587815,186.61,186.58,26.0]
[1755766182339,41.56,186.6,186.58,26.0]
[1755766182552,41.56,186.6,186.57,26.0]
[1755766183044,45.98587815,186.6,186.57,26.0]
[1755766183245,3.77587815,186.59,186.57,26.0]
[1755766184067,3.77587815,186.58,186.57,26.0]
[1755766184342,3.77587815,186.58,186.56,0.03]
[1755766184343,4.42587815,186.58,186.56,0.03]
[1755766184559,45.98587815,186.57,186.56,0.03]
[1755766184849,42.21,186.57,186.56,0.03]
[1755766185148,63.35735031,186.57,186.56,0.03]
[1755766186424,61.96609452,186.57,186.56,0.03]
[1755766188623,68.12659503,186.57,186.56,0.03]